bitfinex-derivatives/quotes_ETHF0:USTF0_20230401
["timestamp","ask_amount","ask_price","bid_price","bid_amount"]
[1680335885332,5.64623575,1823.8,1823.7,1.39567074]
[1680335886329,7.14715177,1823.8,1823.7,0.57467074]
[1680335886635,6.46723575,1823.8,1823.7,0.57467074]
[1680335887030,7.14716086,1823.8,1823.7,0.57467074]
[1680335888035,1.0,1823.7,1823.6,3.6676349]
[1680335889239,2.15039876,1823.7,1823.6,2.80819952]
[1680335889441,1.15039876,1823.7,1823.6,2.80819952]
[1680335890338,2.43843575,1823.7,1823.6,2.80819952]
[1680335891131,1.0,1823.7,1823.6,2.80819952]
[1680335891731,6.46723575,1823.8,1823.6,2.80819952]
[1680335891936,1.0,1823.7,1823.6,2.80819952]
[1680335892636,2.43843575,1823.7,1823.6,2.23352878]
[1680335892835,2.43843575,1823.7,1823.5,2.25510612]
[1680335893036,1.1501967,1823.6,1823.5,2.25510612]
[1680335893336,1.1501967,1823.6,1823.5,1.39567074]
[1680335894341,1.36976345,1823.6,1823.5,1.39567074]
[1680335896831,1.36976345,1823.6,1823.5,3.07050749]
[1680335897039,1.36976345,1823.6,1823.5,3.62138508]
[1680335897236,0.21956675,1823.6,1823.5,3.62138508]
[1680335897437,1.1501967,1823.6,1823.5,3.62138508]
[1680335899239,4.3579967,1823.6,1823.5,3.04671434]
[1680335901849,0.86200623,1823.6,1823.5,3.61438508]
[1680335902235,0.86200623,1823.6,1823.5,4.61438508]
[1680335909347,1.07692558,1823.6,1823.5,4.61438508]
[1680335909846,1.07692558,1823.6,1823.5,3.61438508]
[1680335911848,1.07692558,1823.6,1823.5,4.61438508]
[1680335912347,1.07692558,1823.6,1823.5,3.61438508]
[1680335913145,1.07692558,1823.6,1823.5,4.61438508]
[1680335914443,1.07692558,1823.6,1823.5,5.47382046]
[1680335916344,1.07692558,1823.6,1823.5,4.61438508]
[1680335918153,1.07692558,1823.6,1823.5,5.47382046]
[1680335921153,1.07692558,1823.6,1823.5,4.89914972]
[1680335921353,1.07692558,1823.6,1823.5,5.47382926]
[1680335922053,1.07692558,1823.6,1823.5,4.89914972]
[1680335923958,0.21491935,1823.6,1823.5,4.89914972]
[1680335924259,1.1501967,1823.7,1823.5,4.89914972]
[1680335924454,1.1501967,1823.7,1823.6,1.39581371]
[1680335924660,4.64623575,1823.8,1823.6,2.39581371]
[1680335924857,4.64623575,1823.8,1823.7,0.821]
[1680335925058,5.3261873,1823.8,1823.7,0.821]
[1680335925557,5.32543019,1823.8,1823.7,0.821]
[1680335925758,3.88775155,1823.8,1823.7,0.821]
[1680335926857,3.88775155,1823.8,1823.7,0.81732234]
[1680335931067,0.67995155,1823.8,1823.7,0.81732234]
[1680335931266,5.32592455,1823.8,1823.7,0.81732234]
[1680335931566,2.11801596,1823.8,1823.7,1.39213605]
[1680335932067,2.11801596,1823.8,1823.7,0.81732234]
[1680335932567,0.67990336,1823.8,1823.7,0.81732234]
[1680335936460,5.32611666,1823.8,1823.7,0.81732234]
[1680335936665,5.32611666,1823.8,1823.7,1.39213605]
[1680335936666,2.11831666,1823.8,1823.7,1.39213605]
[1680335936867,2.11832648,1823.8,1823.7,1.39213605]
[1680335937066,2.11832648,1823.8,1823.6,2.25524909]
[1680335937267,1.4384133,1823.7,1823.6,1.39581371]
[1680335939167,1.73162964,1823.7,1823.6,1.39581371]
[1680335939362,4.93942964,1823.7,1823.6,1.39581371]
[1680335941572,1.44382986,1823.7,1823.6,1.68043538]
[1680335942280,1.44382986,1823.7,1823.6,2.25513026]
[1680335943780,0.29321634,1823.7,1823.6,2.25513026]
[1680335943979,1.44382645,1823.7,1823.6,4.07613026]
[1680335944380,0.29321634,1823.7,1823.6,3.21669488]
[1680335944678,1.44382789,1823.7,1823.6,4.07613026]
[1680335945075,0.29321634,1823.7,1823.6,4.07613026]
[1680335946280,0.29321634,1823.7,1823.6,3.07613026]
[1680335946482,1.44387201,1823.7,1823.6,3.6333593]
[1680335947282,0.29321634,1823.7,1823.6,3.05866442]
[1680335950377,0.29321634,1823.7,1823.6,2.23766442]
[1680335953289,0.29321634,1823.7,1823.6,2.81241874]
[1680335955297,1.73162964,1823.7,1823.6,2.81241874]
[1680335955792,1.73162964,1823.7,1823.6,1.95298336]
[1680335959391,1.72832964,1823.7,1823.6,1.95298336]
[1680335963393,1.80105127,1823.7,1823.6,1.95298336]
[1680335975304,1.80105127,1823.7,1823.6,2.81241874]
[1680335979498,0.36263797,1823.7,1823.6,3.05566442]
[1680335979703,0.36263797,1823.7,1823.6,4.05566442]
[1680335979704,1.51356685,1823.7,1823.6,4.05566442]
[1680335983109,1.51356685,1823.7,1823.6,4.34214287]
[1680335983311,0.93773873,1823.7,1823.6,3.19622904]
[1680335983616,0.93773873,1823.7,1823.6,4.3449526]
[1680335985018,1.80078927,1823.7,1823.6,4.3449526]
[1680335985213,0.93773873,1823.7,1823.6,4.3449526]
[1680335987018,0.93773873,1823.7,1823.6,5.1629526]
[1680335989519,0.93773873,1823.7,1823.6,4.01422904]
[1680335990012,0.93773873,1823.7,1823.6,5.1629526]
[1680335990214,0.93773873,1823.7,1823.6,4.01422904]
[1680335991321,0.93773873,1823.7,1823.6,3.01422904]
[1680335991519,0.93773873,1823.7,1823.6,4.01422904]
[1680335991719,0.93773873,1823.7,1823.6,4.87522469]
[1680335997123,0.93773873,1823.7,1823.6,4.05722469]
[1680335999920,0.36263797,1823.7,1823.6,9.8289526]
[1680336000225,13.708,1824.1,1823.7,1.0]
[1680336000423,17.7368,1824.4,1823.7,4.2078]
[1680336000726,1.0,1824.3,1823.9,0.815]
[1680336001225,4.0288,1824.2,1823.9,0.815]
[1680336001428,1.0,1824.1,1823.9,0.815]
[1680336005628,3.2078,1824.0,1823.9,0.815]
[1680336005826,4.35690563,1824.0,1823.9,0.815]
[1680336006223,3.2078,1824.0,1823.9,0.95659038]
[1680336007029,3.2078,1824.0,1823.9,0.95959038]
[1680336007437,3.2078,1824.0,1823.9,0.14159038]
[1680336007630,4.64420439,1824.0,1823.8,0.815]
[1680336007823,1.14915095,1823.9,1823.8,0.815]
[1680336012233,1.14915095,1823.9,1823.8,0.95729386]
[1680336014230,2.14915095,1823.9,1823.8,0.95729386]
[1680336014630,2.14939016,1823.9,1823.8,0.95729386]
[1680336014827,1.0,1823.9,1823.8,0.95729386]
[1680336016329,2.43640439,1823.9,1823.8,0.95729386]
[1680336017037,2.43640439,1823.9,1823.8,0.14229386]
[1680336023331,3.11630369,1823.9,1823.8,0.14229386]
[1680336028340,3.11783192,1823.9,1823.8,0.14229386]
[1680336035450,1.6798993,1823.9,1823.8,0.14229386]
[1680336035655,1.6798993,1823.9,1823.6,2.80632963]
[1680336035959,1.15032866,1823.7,1823.6,2.80632963]
[1680336036158,1.15032866,1823.7,1823.6,2.23268939]
[1680336036960,1.15032866,1823.7,1823.6,2.23868939]
[1680336037156,1.15032866,1823.7,1823.6,2.81305021]
[1680336037555,1.15032866,1823.7,1823.6,2.81306104]
[1680336038752,1.15032866,1823.7,1823.6,1.95260069]
[1680336039450,1.15032866,1823.7,1823.6,2.06887176]
[1680336039850,2.15032866,1823.7,1823.6,2.06887176]
[1680336040055,1.15032866,1823.7,1823.6,2.06887176]
[1680336040859,0.8626094,1823.7,1823.6,2.35496046]
[1680336041055,1.15032866,1823.7,1823.6,2.35496046]
[1680336044661,1.15032866,1823.7,1823.6,2.9291883]
[1680336045256,1.15032866,1823.7,1823.6,2.06872795]
[1680336045956,1.15032866,1823.7,1823.6,2.35496046]
[1680336046359,1.15032866,1823.7,1823.6,2.9291819]
[1680336046559,1.15032866,1823.7,1823.6,2.92917675]
[1680336047062,1.15032866,1823.7,1823.6,2.10817675]
[1680336047461,2.15032866,1823.7,1823.6,1.2477164]
[1680336049362,1.15032866,1823.7,1823.6,1.2477164]
[1680336050060,2.97132866,1823.7,1823.6,1.2477164]
[1680336050264,3.25891083,1823.7,1823.6,1.2477164]
[1680336050459,1.821,1823.7,1823.6,1.2477164]
[1680336050868,0.821,1823.7,1823.6,0.67350011]
[1680336051068,1.9712318,1823.7,1823.6,1.24773948]
[1680336051364,1.1502318,1823.7,1823.6,1.24773948]
[1680336051561,1.1502318,1823.7,1823.6,2.10819983]
[1680336051764,1.1502318,1823.7,1823.6,1.53396046]
[1680336052159,1.1502318,1823.7,1823.6,1.24778238]
[1680336058469,2.9672318,1823.7,1823.5,0.86046035]
[1680336058670,0.821,1823.6,1823.4,2.40739112]
[1680336058865,1.15051322,1823.5,1823.4,2.40739112]
[1680336059065,1.15051322,1823.5,1823.4,1.40739112]
[1680336059265,0.86271369,1823.5,1823.4,1.40739112]
[1680336059462,1.97151322,1823.6,1823.4,1.40739112]
[1680336060173,1.97151322,1823.6,1823.4,2.40739112]
[1680336060466,1.97151322,1823.6,1823.4,1.40739112]
[1680336060869,1.97151322,1823.6,1823.4,2.40739112]
[1680336061472,1.97151322,1823.6,1823.4,1.40739112]
[1680336062265,0.86259137,1823.5,1823.4,1.40739112]
[1680336063067,0.86259137,1823.5,1823.4,2.40739112]
[1680336063267,0.86259137,1823.5,1823.4,6.43619112]
[1680336063465,0.86259137,1823.5,1823.4,6.43692543]
[1680336063669,0.86259137,1823.5,1823.4,3.22911633]
[1680336065075,0.86259137,1823.5,1823.4,3.22911039]
[1680336065478,0.86259137,1823.5,1823.4,2.36793077]
[1680336065872,0.86259137,1823.5,1823.4,3.229097]
[1680336066373,0.86259137,1823.5,1823.4,3.33078649]
[1680336072872,0.57501372,1823.5,1823.4,3.61690073]
[1680336073278,1.43760509,1823.5,1823.4,6.82470073]
[1680336073580,0.86259137,1823.5,1823.4,1.50976916]
[1680336077083,0.86259137,1823.5,1823.4,2.32476916]
[1680336087491,0.86273212,1823.5,1823.4,2.32476916]
[1680336087687,4.35831322,1823.6,1823.4,2.32476916]
[1680336087889,0.86273189,1823.5,1823.4,2.32476916]
[1680336088196,0.86271246,1823.5,1823.4,2.32476916]
[1680336089386,4.35831322,1823.6,1823.4,2.32476916]
[1680336089587,0.86277087,1823.5,1823.4,2.32476916]
[1680336089787,4.35831322,1823.6,1823.4,2.32476916]
[1680336090192,0.86276447,1823.5,1823.4,2.32476916]
[1680336090394,0.86276444,1823.5,1823.4,2.32476916]
[1680336090995,4.35831322,1823.6,1823.4,2.32476916]
[1680336092196,1.15051322,1823.5,1823.4,2.32476916]
[1680336092698,1.15051322,1823.5,1823.4,2.29681792]
[1680336096297,2.15051322,1823.5,1823.4,2.29681792]
[1680336096492,1.15051322,1823.5,1823.4,2.29681792]
[1680336097000,1.15051322,1823.5,1823.4,1.48181792]
[1680336106402,1.15051322,1823.5,1823.4,1.45591617]
[1680336108101,2.15051322,1823.5,1823.4,1.45591617]
[1680336108301,1.15051322,1823.5,1823.4,1.45591617]
[1680336109704,1.15051322,1823.5,1823.4,0.59476727]
[1680336111906,2.15051322,1823.5,1823.4,0.59476727]
[1680336112106,1.15051322,1823.5,1823.4,0.59476727]
[1680336116112,2.15051322,1823.5,1823.4,0.59476727]
[1680336119410,1.15051322,1823.5,1823.4,0.59476727]
[1680336128028,2.15051322,1823.5,1823.4,0.59476727]
[1680336128535,1.15051322,1823.5,1823.4,0.59476727]
[1680336128724,2.15051322,1823.5,1823.4,0.58791362]
[1680336128924,1.15051322,1823.5,1823.4,0.58791362]
[1680336130239,7.00580618,1823.6,1823.4,0.58791362]
[1680336134334,7.00580618,1823.6,1823.4,0.57341649]
[1680336134534,7.00580618,1823.6,1823.4,0.54007712]
[1680336134732,7.00580618,1823.6,1823.3,3.86823865]
[1680336134933,1.15080106,1823.4,1823.3,3.86823865]
[1680336135636,1.14761315,1823.4,1823.3,3.86823865]
[1680336136938,1.14761315,1823.4,1823.3,3.04723865]
[1680336139331,1.14761315,1823.4,1823.3,3.58294358]
[1680336144243,1.14761315,1823.4,1823.3,3.61626421]
[1680336144943,5.46671083,1823.4,1823.3,2.72179468]
[1680336145242,6.14676641,1823.4,1823.2,0.8611489]
[1680336145439,0.821,1823.3,1823.1,0.8611489]
[1680336145742,0.86293907,1823.2,1823.1,0.8611489]
[1680336146239,0.86293907,1823.2,1823.1,1.6821489]
[1680336146640,0.86293907,1823.2,1823.1,3.30665941]
[1680336146840,0.86293907,1823.2,1823.1,3.44551051]
[1680336147439,0.86293907,1823.2,1823.1,4.30551822]
[1680336147634,0.86293907,1823.2,1823.1,3.30551822]
[1680336148738,0.86293907,1823.2,1823.1,4.30551822]
[1680336149334,0.86293907,1823.2,1823.1,3.30551822]
[1680336149734,0.86293907,1823.2,1823.1,4.30551822]
[1680336149949,0.86293907,1823.2,1823.1,3.30551822]
[1680336150343,0.86293907,1823.2,1823.1,4.30551822]
[1680336150736,0.86293907,1823.2,1823.1,3.30551822]
[1680336150943,0.57510419,1823.2,1823.1,2.44551051]
[1680336151139,0.57510419,1823.2,1823.1,3.44551051]
[1680336151338,0.57510419,1823.2,1823.1,4.59279098]
[1680336156049,0.57510419,1823.3,1823.1,4.8796111]
[1680336156245,0.57510419,1823.3,1823.2,2.14578622]
[1680336156653,0.57510419,1823.3,1823.2,5.35358622]
[1680336156953,0.57510419,1823.3,1823.2,2.14578622]
[1680336157138,0.86293907,1823.4,1823.2,2.14578622]
[1680336157139,1.43804326,1823.4,1823.2,5.35358622]
[1680336157340,0.57510419,1823.3,1823.2,5.35358622]
[1680336158247,0.57510419,1823.3,1823.2,4.35358622]
[1680336158848,0.57510419,1823.3,1823.2,1.14578622]
[1680336159054,0.57510419,1823.3,1823.2,4.35358622]
[1680336160152,0.57510419,1823.3,1823.2,0.55570631]
[1680336160348,0.57510419,1823.3,1823.2,1.14578622]
[1680336160546,0.57510419,1823.3,1823.2,2.14578622]
[1680336160951,0.57510419,1823.3,1823.2,4.2078]
[1680336161148,0.57510419,1823.3,1823.2,5.35336446]
[1680336161349,0.57510419,1823.4,1823.2,5.35336446]
[1680336161549,0.57510419,1823.4,1823.3,0.859041]
[1680336161745,0.86293907,1823.4,1823.3,0.859041]
[1680336164653,0.86293907,1823.4,1823.3,1.41743936]
[1680336167055,0.821,1823.4,1823.3,0.55839836]
[1680336167251,0.821,1823.4,1823.2,0.859041]
[1680336167548,1.43764957,1823.3,1823.2,0.859041]
[1680336167953,0.86258974,1823.3,1823.2,0.859041]
[1680336169248,0.86258974,1823.3,1823.2,1.40228518]
[1680336176861,1.86258974,1823.3,1823.2,1.40228518]
[1680336177061,0.86258974,1823.3,1823.2,1.40228518]
[1680336177460,1.86258974,1823.3,1823.2,1.40228518]
[1680336177958,0.86258974,1823.3,1823.2,1.40228518]
[1680336178364,1.86258974,1823.3,1823.2,1.40228518]
[1680336178567,1.0,1823.3,1823.2,1.11609015]
[1680336178866,2.15004234,1823.3,1823.2,1.11609015]
[1680336179054,5.35784234,1823.3,1823.2,1.11609015]
[1680336179261,4.2078,1823.3,1823.2,1.11609015]
[1680336180861,3.2078,1823.3,1823.2,1.11609015]
[1680336184264,4.35784234,1823.3,1823.2,1.11609015]
[1680336186969,5.17484234,1823.3,1823.2,1.11609015]
[1680336190563,5.17884234,1823.3,1823.2,1.11609015]
[1680336191469,5.17884234,1823.3,1823.2,0.54324418]
[1680336191772,5.17884234,1823.3,1823.1,3.05639748]
[1680336191968,0.86247396,1823.2,1823.1,3.05639748]
[1680336196076,5.17884234,1823.3,1823.1,2.19735648]
[1680336197781,5.17884234,1823.3,1823.1,1.62451051]
[1680336197979,5.17884234,1823.3,1823.0,5.05288697]
[1680336198180,1.43719675,1823.1,1823.0,5.05288697]
[1680336199179,0.5748787,1823.1,1823.0,5.480041]
[1680336199379,0.5748787,1823.2,1823.0,7.43442254]
[1680336199679,0.5748787,1823.2,1823.1,4.88786259]
[1680336199881,0.5748787,1823.2,1823.1,5.88786259]
[1680336201188,0.5748787,1823.2,1823.1,5.92032881]
[1680336203382,0.5748787,1823.2,1823.1,5.88786259]
[1680336204090,0.5748787,1823.2,1823.1,2.68006259]
[1680336204484,0.5748787,1823.2,1823.1,1.68006259]
[1680336204682,1.15004234,1823.2,1823.0,5.85953694]
[1680336204882,1.86237569,1823.1,1823.0,5.85953694]
[1680336205082,0.86237569,1823.1,1823.0,5.85953694]
[1680336207892,5.35784234,1823.2,1823.0,5.28685808]
[1680336208093,0.86229138,1823.1,1823.0,5.28685808]
[1680336208492,5.35784234,1823.2,1823.0,5.28685808]
[1680336208687,0.86228778,1823.1,1823.0,5.28685808]
[1680336209086,0.86228778,1823.1,1823.0,5.85953694]
[1680336210386,0.85825179,1823.1,1823.0,5.85953694]
[1680336216998,0.85825179,1823.1,1823.0,5.86153694]
[1680336227007,0.85825179,1823.1,1823.0,5.85853694]
[1680336227809,1.85825179,1823.1,1823.0,3.05853694]
[1680336228200,0.85825179,1823.1,1823.0,3.05853694]
[1680336231916,1.15004234,1823.1,1823.0,3.05853694]
[1680336234419,0.61391973,1823.1,1823.0,3.05853694]
[1680336237025,0.61391973,1823.1,1823.0,2.24053694]
[1680336241027,0.61391973,1823.1,1823.0,0.57267886]
[1680336244031,1.61391973,1823.1,1823.0,41.37267886]
[1680336244330,0.61391973,1823.1,1823.0,41.37267886]
[1680336246429,0.61391973,1823.1,1823.0,41.36914831]
[1680336249535,0.61391973,1823.1,1823.0,41.65906259]
[1680336250736,5.46671083,1823.2,1823.0,41.65906259]
[1680336250924,5.46671083,1823.2,1823.0,0.85906259]
[1680336251435,5.46671083,1823.2,1823.1,40.8]
[1680336251635,6.14685687,1823.2,1823.1,40.8]
[1680336252036,1.43791083,1823.2,1823.1,41.621]
[1680336252235,1.43791083,1823.3,1823.1,42.48006259]
[1680336252534,2.11799828,1823.3,1823.1,42.48006259]
[1680336252738,1.43791083,1823.3,1823.2,1.0]
[1680336252938,2.11799667,1823.3,1823.2,1.0]
[1680336254940,1.43791083,1823.3,1823.2,1.0]
[1680336256947,1.43791083,1823.3,1823.2,1.815]
[1680336257348,1.43791083,1823.3,1823.2,2.35804278]
[1680336259647,4.0288,1823.5,1823.2,3.21710537]
[1680336259648,2.25891083,1823.5,1823.2,3.21710537]
[1680336259840,2.11798279,1823.4,1823.2,2.35804278]
[1680336260238,2.11798279,1823.4,1823.3,40.8]
[1680336261050,1.43800348,1823.4,1823.3,40.8]
[1680336261347,2.11806199,1823.4,1823.3,40.8]
[1680336262753,5.32586199,1823.4,1823.3,40.8]
[1680336263157,3.88785851,1823.4,1823.3,40.8]
[1680336264554,5.32579344,1823.4,1823.3,40.8]
[1680336264855,1.43793493,1823.4,1823.3,40.8]
[1680336265055,2.11799916,1823.4,1823.3,40.8]
[1680336265255,1.43793493,1823.4,1823.3,40.8]
[1680336265855,2.1179967,1823.4,1823.3,40.8]
[1680336266158,1.43793493,1823.4,1823.3,40.8]
[1680336266351,2.11799424,1823.4,1823.3,40.8]
[1680336266753,1.43793493,1823.4,1823.3,40.8]
[1680336266955,2.1179994,1823.4,1823.3,40.8]
[1680336267155,2.9389994,1823.4,1823.3,40.8]
[1680336267353,2.93900028,1823.4,1823.3,40.8]
[1680336267957,2.25893493,1823.4,1823.3,40.8]
[1680336268151,2.9390017,1823.4,1823.3,40.8]
[1680336268453,2.25893493,1823.4,1823.3,40.8]
[1680336268661,2.93900261,1823.4,1823.3,40.8]
[1680336269750,1.97097936,1823.4,1823.3,40.8]
[1680336269955,0.821,1823.4,1823.3,40.8]
[1680336271358,1.97093648,1823.4,1823.3,40.8]
[1680336276961,1.14993648,1823.4,1823.3,40.8]
[1680336281766,1.14993648,1823.4,1823.3,42.40604556]
[1680336287270,0.86220511,1823.4,1823.3,46.43284556]
[1680336287464,0.86220511,1823.4,1823.3,46.46524391]
[1680336287770,0.86220511,1823.4,1823.3,46.43284556]
[1680336289473,1.43693107,1823.4,1823.3,47.29190815]
[1680336290270,0.86220511,1823.4,1823.3,46.43284556]
[1680336290669,1.43689002,1823.4,1823.3,46.43284556]
[1680336290874,1.43688791,1823.4,1823.3,46.43284556]
[1680336291073,0.86220511,1823.4,1823.3,46.43284556]
[1680336291274,1.43689096,1823.4,1823.3,46.43284556]
[1680336293067,0.57468585,1823.4,1823.3,46.43284556]
[1680336293471,1.43689096,1823.4,1823.3,46.43284556]
[1680336293773,0.57468585,1823.4,1823.3,46.43284556]
[1680336293978,1.43689096,1823.4,1823.3,46.43284556]
[1680336294274,0.57468585,1823.4,1823.3,46.43284556]
[1680336294678,1.43689096,1823.4,1823.3,46.43284556]
[1680336295772,0.86220511,1823.4,1823.3,46.43284556]
[1680336314191,0.86220511,1823.4,1823.3,47.29190815]
[1680336315092,0.86220511,1823.4,1823.3,46.43284556]
[1680336315387,0.86220511,1823.4,1823.3,47.29190815]
[1680336315793,0.86220511,1823.4,1823.3,46.43284556]
[1680336316092,0.86220511,1823.4,1823.3,43.22504556]
[1680336318497,0.85681452,1823.4,1823.3,43.22504556]
[1680336320594,0.85681452,1823.4,1823.3,44.08410815]
[1680336322194,1.14993648,1823.5,1823.3,44.08410815]
[1680336322390,1.14993648,1823.5,1823.4,1.0]
[1680336322788,1.14993648,1823.5,1823.4,40.8]
[1680336325692,0.60650884,1823.5,1823.4,40.8]
[1680336325896,0.60650884,1823.5,1823.4,40.83896219]
[1680336327001,0.60650884,1823.5,1823.4,41.65996219]
[1680336327591,0.06093478,1823.5,1823.4,41.65996219]
[1680336329801,0.06093478,1823.5,1823.4,42.51902478]
[1680336330501,0.06093478,1823.5,1823.4,41.65996219]
[1680336330700,0.06093478,1823.5,1823.4,42.51902478]
[1680336331597,1.43793493,1823.7,1823.5,1.0]
[1680336331797,2.11788494,1823.7,1823.5,1.0]
[1680336332199,2.11788494,1823.7,1823.6,40.8]
[1680336333701,0.67995001,1823.7,1823.6,40.8]
[1680336334397,1.43824727,1823.8,1823.6,45.68186259]
[1680336334595,1.43824727,1823.9,1823.8,1.0]
[1680336334795,2.11812281,1823.9,1823.8,1.0]
[1680336335103,1.43824727,1823.9,1823.8,1.0]
[1680336335298,2.11814468,1823.9,1823.8,1.0]
[1680336335506,2.11814468,1823.9,1823.7,1.0]
[1680336335907,2.11814468,1823.9,1823.8,0.04107099]
[1680336339407,1.43824727,1823.9,1823.8,0.58686243]
[1680336339609,1.43824727,1823.9,1823.8,0.04107099]
[1680336339610,2.11815073,1823.9,1823.8,0.04107099]
[1680336339912,2.1181566,1823.9,1823.8,0.04107099]
[1680336340207,2.11815072,1823.9,1823.8,0.04107099]
[1680336340414,1.43824727,1823.9,1823.8,0.04107099]
[1680336340912,2.11815639,1823.9,1823.8,0.04107099]
[1680336341114,1.43824727,1823.9,1823.8,0.04107099]
[1680336342208,5.46704727,1823.9,1823.8,0.04107099]
[1680336342409,6.14696479,1823.9,1823.8,0.55664521]
[1680336342713,5.46704727,1823.9,1823.6,40.8]
[1680336347019,5.46704727,1823.9,1823.6,41.615]
[1680336350130,5.46704727,1823.9,1823.6,42.16636055]
[1680336357642,1.14892028,1823.8,1823.6,42.16636055]
[1680336362641,1.14892028,1823.8,1823.7,0.821]
[1680336362847,1.14892028,1823.8,1823.7,1.821]
[1680336363046,1.14892028,1823.8,1823.7,1.85747603]
[1680336366447,1.14892028,1823.8,1823.7,1.85151111]
[1680336366949,1.14892028,1823.8,1823.7,1.85747603]
[1680336367147,1.14892028,1823.8,1823.7,2.41675615]
[1680336368456,1.14892028,1823.9,1823.7,2.41675615]
[1680336368753,1.14892028,1823.9,1823.7,2.9895615]
[1680336368950,1.14892028,1823.9,1823.8,3.2078]
[1680336369252,1.14892028,1823.9,1823.8,4.24172943]
[1680336369950,1.14892028,1823.9,1823.8,1.03392943]
[1680336370453,1.14932087,1823.9,1823.8,1.03392943]
[1680336370955,2.25524727,1824.0,1823.8,1.03392943]
[1680336373251,1.43824727,1823.9,1823.8,1.03392943]
[1680336373455,1.14964533,1823.9,1823.8,4.24172943]
[1680336374847,2.25524727,1824.0,1823.8,4.24172943]
[1680336375043,1.43824727,1823.9,1823.8,1.03392943]
[1680336377558,2.11811727,1823.9,1823.8,0.03392943]
[1680336378558,1.43824727,1823.9,1823.8,0.03392943]
[1680336379061,2.11809617,1823.9,1823.8,0.03392943]
[1680336380661,2.93909617,1823.9,1823.8,0.03392943]
[1680336381561,1.5008489,1823.9,1823.8,0.03392943]
[1680336381761,1.5008489,1823.9,1823.8,1.66066731]
[1680336381963,1.5008489,1823.9,1823.8,0.03392943]
[1680336383360,2.25889561,1823.9,1823.8,0.03392943]
[1680336383561,2.93874451,1823.9,1823.8,0.03392943]
[1680336384363,6.14654437,1823.9,1823.8,0.03392943]
[1680336384566,6.14656718,1823.9,1823.8,0.03392943]
[1680336385062,4.7086489,1823.9,1823.8,0.03392943]
[1680336386564,6.1465638,1823.9,1823.8,0.03392943]
[1680336396169,4.7086489,1823.9,1823.8,0.03392943]
[1680336397070,4.7086489,1823.9,1823.8,1.65852922]
[1680336401677,4.7086489,1823.9,1823.7,0.55928012]
[1680336401871,1.6798489,1823.8,1823.6,42.19380535]
[1680336402169,1.43827107,1823.7,1823.6,42.19380535]
[1680336403572,2.11823258,1823.7,1823.6,41.621]
[1680336403868,5.32603023,1823.7,1823.6,41.621]
[1680336404076,4.64607107,1823.7,1823.6,41.621]
[1680336404267,5.32603473,1823.7,1823.6,41.621]
[1680336404468,4.64607107,1823.7,1823.6,41.621]
[1680336404977,5.32603816,1823.7,1823.6,41.621]
[1680336405374,5.32603517,1823.7,1823.6,41.621]
[1680336405676,6.14703517,1823.7,1823.6,40.8]
[1680336406970,4.7087641,1823.7,1823.6,40.8]
[1680336408479,6.14200308,1823.7,1823.6,40.8]
[1680336409278,6.14200308,1823.7,1823.4,1.39180535]
[1680336409479,2.14978818,1823.6,1823.4,1.39180535]
[1680336409779,2.14978818,1823.6,1823.5,40.8]
[1680336409967,1.14978818,1823.6,1823.5,40.8]
[1680336417588,1.68458876,1823.6,1823.5,40.8]
[1680336419079,1.97203956,1823.6,1823.5,40.8]
[1680336419286,1.43723898,1823.6,1823.5,40.8]
[1680336420086,5.46203898,1823.7,1823.5,40.8]
[1680336423281,1.1490792,1823.6,1823.5,40.8]
[1680336436291,0.86188199,1823.6,1823.5,41.621]
[1680336436593,0.86188199,1823.6,1823.5,42.19380535]
[1680336436793,0.86188199,1823.6,1823.5,41.621]
[1680336437291,0.86188199,1823.6,1823.5,42.19380535]
[1680336446393,0.86188199,1823.6,1823.5,42.48006259]
[1680336446791,0.86188199,1823.6,1823.5,43.05378237]
[1680336446987,0.86188199,1823.6,1823.5,42.48006259]
[1680336447498,0.86188199,1823.6,1823.5,43.0537594]
[1680336451300,0.86188199,1823.6,1823.5,42.48006259]
[1680336452294,0.86188199,1823.6,1823.5,43.05390579]
[1680336452801,0.86188199,1823.6,1823.5,43.05390041]
[1680336458209,0.86188199,1823.6,1823.5,42.19483782]
[1680336458506,0.86188199,1823.6,1823.5,43.05390041]
[1680336460412,0.86188199,1823.6,1823.5,42.19483782]
[1680336461213,0.86188199,1823.6,1823.5,43.05390041]
[1680336462310,0.86188199,1823.6,1823.5,42.19483782]
[1680336466309,0.86188199,1823.6,1823.5,43.05390041]
[1680336469606,0.86188199,1823.6,1823.5,42.48006259]
[1680336477215,1.1490792,1823.7,1823.5,42.48006259]
[1680336477415,1.1490792,1823.7,1823.6,2.39203446]
[1680336477816,1.1490792,1823.7,1823.6,43.19203446]
[1680336478225,0.86264506,1823.7,1823.6,46.68486259]
[1680336478523,1.1490792,1823.7,1823.6,43.47706259]
[1680336478827,1.1490792,1823.7,1823.6,44.05101342]
[1680336479426,1.1490792,1823.7,1823.6,44.0510999]
[1680336479619,1.1490792,1823.7,1823.6,43.47706259]
[1680336480427,1.1490792,1823.7,1823.6,44.05104785]
[1680336480626,1.1490792,1823.7,1823.6,43.19198526]
[1680336481424,1.1490792,1823.7,1823.6,43.47706259]
[1680336482125,1.43723898,1823.7,1823.6,42.19224842]
[1680336482427,2.1171842,1823.7,1823.6,42.19224842]
[1680336483227,1.15082405,1823.7,1823.6,42.47706259]
[1680336483428,1.43723898,1823.8,1823.6,42.47706259]
[1680336483631,2.11715965,1823.8,1823.7,0.57423417]
[1680336483827,0.67992067,1823.8,1823.7,0.57423417]
[1680336484034,0.67992067,1823.8,1823.6,42.19223417]
[1680336484223,1.438599,1823.7,1823.6,42.19223417]
[1680336486922,1.438599,1823.7,1823.6,41.37423417]
[1680336488032,2.1185415,1823.7,1823.6,41.37423417]
[1680336488234,2.259599,1823.8,1823.6,41.65906259]
[1680336488434,1.15081431,1823.7,1823.6,41.65906259]
[1680336488634,2.259599,1823.8,1823.6,41.65906259]
[1680336488831,2.259599,1823.8,1823.7,0.57424179]
[1680336489133,1.50092588,1823.8,1823.6,42.23330438]
[1680336489338,1.43860679,1823.7,1823.6,41.37424179]
[1680336492443,2.11855631,1823.7,1823.6,41.37424179]
[1680336499543,5.32635631,1823.7,1823.6,41.37424179]
[1680336506962,6.14735631,1823.7,1823.6,41.37424179]
[1680336514459,5.46740679,1823.7,1823.6,41.37424179]
[1680336514666,6.14735475,1823.7,1823.6,41.37424179]
[1680336516965,5.32635475,1823.7,1823.6,41.37424179]
[1680336523565,2.11855475,1823.7,1823.6,41.37424179]
[1680336523767,1.43860679,1823.7,1823.6,41.37424179]
[1680336525274,2.11855104,1823.7,1823.6,41.37424179]
[1680336525666,2.11854948,1823.7,1823.6,41.37424179]
[1680336526475,2.11854526,1823.7,1823.6,41.37424179]
[1680336526662,1.43860679,1823.7,1823.6,41.37424179]
[1680336529279,1.43860679,1823.7,1823.6,42.23330438]